Cogmind - Beta 13 @@@ ROGUE MODE // 2024.04.05 @ 23:51:24 Player: TheTakerOFToes Result: Destroyed by S-10 Pest with Light Assault Rifle Performance ------------- Evolutions (1) 500 Regions Visited (3) 600 Robots Destroyed (23) 115 Value Destroyed (627) 627 Prototype IDs (0) 0 Alien Tech Used (0) 0 Bonus (320) 320 TOTAL SCORE: 2162 Bonus ------- High Alert Combat Kills 19 Follower Combat Kills 301 Cogmind --------- Core Integrity 0/400 Matter 294/300 Energy 99/100 System Corruption 0% Temperature Cool (0) Movement Core (50) Location -9/Storage Parts ------- > --- POWER (2) -------- (None) > --- PROPULSION (3) --- (None) > --- UTILITY (2) ------ (None) > --- WEAPON (2) ------- (None) > --- INVENTORY (5) ---- Improved Ion Engine Light Treads Aluminum Leg Peak State ------------ > --- POWER ------------ Light Ion Engine Light Nuclear Core > --- PROPULSION ------- Light Treads Flight Unit Flight Unit > --- UTILITY ---------- Improved Terrain Scanner Drone Bay > --- WEAPON ----------- EM Pulse Gun Missile Launcher > --- INVENTORY -------- Aluminum Leg [Rating: 19] Favorites ----------- Power Light Ion Engine Engine Light Ion Engine Power Core Light Nuclear Core Propulsion Wheel Treads Light Treads Leg Aluminum Leg Wheel Wheel Flight Unit Flight Unit Utility Improved Terrain Scanner Device Improved Terrain Scanner Processor Targeting Computer Weapon EM Pulse Gun Energy Gun EM Pulse Gun Launcher Grenade Launcher Build | -11 -10 -9 -9 ------- Run | Yrd Mat Mat Sto Slots Evolved 2 | . . 2 . Power 1 | . . 1 . Propulsion 1 | . . 1 . Utility . | . . . . Weapon . | . . . . Parts Attached 27 | 6 6 3 12 Power 2 | 1 . . 1 Engine 1 | 1 . . . Core 1 | . . . 1 Reactor . | . . . . Propulsion 10 | 2 2 . 6 Treads 1 | . . . 1 Leg 5 | . . . 5 Wheel 2 | 2 . . . Hover . | . . . . Flight 2 | . 2 . . Utility 3 | 1 1 . 1 Device 2 | 1 . . 1 Storage . | . . . . Processor 1 | . 1 . . Hackware . | . . . . Protection . | . . . . Artifact . | . . . . Weapon 12 | 2 3 3 4 Energy Gun 6 | 2 2 . 2 Energy Cannon . | . . . . Ballistic Gun . | . . . . Ballistic Cannon . | . . . . Launcher 6 | . 1 3 2 Special Weapon . | . . . . Impact Weapon . | . . . . Slashing Weapon . | . . . . Piercing Weapon . | . . . . Special Melee Weapon . | . . . . Unidentified Prototypes . | . . . . Parts Lost 10 | . . 1 9 Power 2 | . . . 2 Propulsion 2 | . . . 2 Utility 2 | . . . 2 Weapon 4 | . . 1 3 Highest Loss Streak 8 | . . 1 8 To Critical Strikes . | . . . . Average Slot Usage (%) 78 | . 95 70 63 Engine 11 | . 14 11 8 Treads 1 | . . . 3 Leg 2 | . . . 6 Wheel 10 | . 22 . . Flight 11 | . 5 22 15 Device 14 | . 14 11 16 Processor 7 | . 10 11 3 Energy Gun 12 | . 21 9 2 Launcher 5 | . 5 5 5 Naked Turns 23 | . . . 23 Heaviest Build 23 | 8 9 9 23 Greatest Support 40 | 20 20 8 40 Greatest Overweight (x) 2 | . 2 1 2 Average Overweight (x) . | . . . . Largest Inventory Capacity 5 | 5 5 5 5 Average Capacity 5 | 5 5 5 5 Most Carried 5 | 3 4 4 5 Average Carried 1 | . 1 2 2 Final Capacity 5 | 5 5 5 5 Final Carried 3 | . 2 3 3 Class Distribution -------------------- 91% | Mutant 4% | Scavenger-Mutant 4% | Commander-Mutant Dominant Class ---------------- Mutant | -10/Materials Mutant | -9/Materials Mutant | -9/Storage Resources | -11 -10 -9 -9 ----------- Run | Yrd Mat Mat Sto Matter Collected 673 | 260 85 2 326 Remotely . | . . . . Salvage Created 567 | 168 97 125 177 Parts 36 | 12 5 7 12 Haulers Intercepted . | . . . . Recyclers Shooed . | . . . . Parts Field Recycled . | . . . . Retrieved Matter . | . . . . Parts Self-Destructed . | . . . . Prevented . | . . . . Kills | -11 -10 -9 -9 ------- Run | Yrd Mat Mat Sto Combat Hostiles Destroyed 14 | 1 2 4 7 Guns 3 | 1 . . 2 AOE 11 | . 2 4 5 Classes Destroyed 7 | 3 1 1 2 Worker 2 | 1 . . 1 Tunneler 4 | 4 . . . Operator 1 | . . . 1 Watcher 2 | . 2 . . Swarmer 1 | . . . 1 Grunt 9 | 1 2 3 3 Sentry 4 | . . 1 3 Best Kill Streak 7 | 2 2 4 7 Combat Bots Only 5 | 1 2 4 5 Max Kills in Single Turn 4 | 1 1 1 4 Gunslinging . | . . . . Exploded 1 | . 1 1 1 Melee . | . . . . Uniques/NPCs Destroyed . | . . . . Combat | -11 -10 -9 -9 -------- Run | Yrd Mat Mat Sto Hostile Shots Fired 124 | 4 8 8 104 Missed 46 | 1 3 2 40 Damage Taken 1093 | 33 74 148 838 Core 438 | 22 12 48 356 Absorbed by Shields . | . . . . Core Remaining (%) 88 | 91 86 . . Volleys Fired 53 | 25 10 5 13 Largest 2 | 2 2 2 2 Hottest 80 | 80 80 70 76 Shots Fired 79 | 31 20 8 20 Gun 57 | 31 16 3 7 Cannon . | . . . . Launcher 22 | . 4 5 13 Special . | . . . . Kinetic . | . . . . Thermal . | . . . . Explosive 22 | . 4 5 13 Electromagnetic 57 | 31 16 3 7 Robot Hit Streak 9 | 5 5 3 9 Robot Miss Streak 3 | 3 2 1 2 Penetration Max . | . . . . Secondary Targets 1 | . 1 . . Max Gunslinging Chain 1 | . 1 . . Shots Hit Robots 46 | 18 12 5 11 Core Hits 36 | 7 8 6 15 Critical Kills . | . . . . Critical Parts Destroyed . | . . . . Critical Strikes 1 | . 1 . . Corrupt 1 | . 1 . . Melee Attacks . | . . . . Impact . | . . . . Slashing . | . . . . Piercing . | . . . . Sneak Attacks . | . . . . Combat Hostiles . | . . . . Follow-up Attacks . | . . . . Damage Inflicted 1673 | 239 336 362 736 Guns 477 | 239 175 10 53 Cannons . | . . . . Explosions 1192 | . 161 352 679 Melee . | . . . . Ramming 4 | . . . 4 Kinetic . | . . . . Thermal 68 | . . 68 . Explosive 1088 | . 161 248 679 Electromagnetic 513 | 239 175 46 53 Impact . | . . . . Slashing . | . . . . Piercing . | . . . . Highest Corruption . | . . . . Average Corruption . | . . . . Corruption Purged . | . . . . Corruption Blocked . | . . . . Overload Shots . | . . . . Overflow Damage 25 | . . . 25 Projectiles . | . . . . Explosions 25 | . . . 25 Melee . | . . . . Knockbacks . | . . . . Impact . | . . . . Kinetic . | . . . . Secondary . | . . . . Self-Inflicted Damage 130 | . . 74 56 Shots 4 | . . 3 1 Rammed . | . . . . Targets Rammed 1 | . . . 1 Kicked 1 | . . . 1 Crushed . | . . . . Highest Temperature 89 | 36 69 42 89 Average Temperature 28 | 17 28 17 52 Received Heat Transfer 330 | 18 42 30 240 Siege Activations . | . . . . Robots Corrupted . | . . . . Combat Hostiles . | . . . . Parts Fried 3 | . 3 . . Impact Corruptions . | . . . . Robots Melted . | . . . . Combat Hostiles . | . . . . Parts Melted . | . . . . Heat Transferred 100 | . . 100 . Parts Sabotaged . | . . . . Parts Stolen . | . . . . Parts Stripped . | . . . . Power Chain Reactions 1 | . . 1 . Alert | -11 -10 -9 -9 ------- Run | Yrd Mat Mat Sto Peak Influence 477 | 45 250 245 477 Initial 105 | . 29 105 103 Average 163 | 27 138 182 270 Maximum Alert Level 2 | . 1 1 2 Low Security (%) 66 | 100 87 53 26 Level 1 26 | . 12 46 51 Level 2 7 | . . . 21 Level 3 . | . . . . Level 4 . | . . . . Level 5 . | . . . . High Security . | . . . . Max Security . | . . . . Squads Dispatched 4 | . . 1 3 Investigation 1 | . . 1 . Extermination . | . . . . Reinforcement 1 | . . . 1 Assault 2 | . . . 2 Garrison . | . . . . Intercept . | . . . . Searches Triggered . | . . . . Construction Impeded . | . . . . Haulers Reinforced . | . . . . Active Scanning Responses . | . . . . Cargo Convoy Interrupts . | . . . . Stealth | -11 -10 -9 -9 --------- Run | Yrd Mat Mat Sto Distress Signals 1 | . 1 . . Communications Jammed . | . . . . Distress Signals . | . . . . Times Spotted 38 | 1 8 8 21 Peak Tracking Total 7 | 1 4 4 7 Tactical Retreats 1 | . 1 . . Traps | -11 -10 -9 -9 ------- Run | Yrd Mat Mat Sto Traps Triggered . | . . . . Indirectly . | . . . . Trap Hack Attempts . | . . . . Triggered . | . . . . Disarmed . | . . . . Reprogrammed . | . . . . Reused . | . . . . Traps Extracted . | . . . . Installed . | . . . . Triggered . | . . . . Machines | -11 -10 -9 -9 ---------- Run | Yrd Mat Mat Sto Machines Disabled 4 | . . 1 3 Max in Single Turn 2 | . . 1 2 Machines Repaired . | . . . . Machines Dismantled . | . . . . Machines Sabotaged . | . . . . Overloaded Fab Kills . | . . . . Hacking | -11 -10 -9 -9 --------- Run | Yrd Mat Mat Sto Machines Accessed 7 | . 2 1 4 Terminals 7 | . 2 1 4 Fabricators . | . . . . Repair Stations . | . . . . Recycling Units . | . . . . Scanalyzers . | . . . . Garrison Access . | . . . . Total Hacks 18 | . 6 4 8 Successful 12 | . 4 3 5 Failed 6 | . 2 1 3 Catastrophic . | . . . . Database Lockouts . | . . . . Manual . | . . . . Terminals 18 | . 6 4 8 Fabricators . | . . . . Repair Stations . | . . . . Recycling Units . | . . . . Scanalyzers . | . . . . Garrison Access . | . . . . Terminal Hacks 12 | . 4 3 5 Record 3 | . . . 3 Open Door 1 | . . . 1 Locate Traps 2 | . . 1 1 Patrol Status 1 | . 1 . . Investigation Status 1 | . . 1 . Assault Status 1 | . 1 . . Hauler Manifests 1 | . 1 . . Zone Layout 2 | . 1 1 . Fabricator Hacks . | . . . . Repair Station Hacks . | . . . . Recycling Unit Hacks . | . . . . Scanalyzer . | . . . . Garrison Access Hacks . | . . . . Unauthorized Hacks . | . . . . Terminals . | . . . . Fabricators . | . . . . Repair Stations . | . . . . Recycling Units . | . . . . Scanalyzers . | . . . . Garrison Access . | . . . . Data Cores Recovered . | . . . . Used . | . . . . Hacking Detections 3 | . 1 1 1 Full Trace Events 2 | . . 1 1 Feedback Events . | . . . . Feedback Blocked . | . . . . Robot Schematics Acquired . | . . . . Robots Built . | . . . . Authchips . | . . . . Time . | . . . . Total Robot Build Rating . | . . . . Part Schematics Acquired . | . . . . Parts Built . | . . . . Authchips . | . . . . Time . | . . . . Total Part Build Rating . | . . . . Parts Repaired . | . . . . Time . | . . . . Parts Recycled . | . . . . Recycled Matter . | . . . . Retrieved Matter . | . . . . Retrieved Components . | . . . . Parts Scanalyzed . | . . . . Part Schematics Acquired . | . . . . Parts Damaged . | . . . . Bothacking | -11 -10 -9 -9 ------------ Run | Yrd Mat Mat Sto Used RIF Installer . | . . . . Robots Hacked . | . . . . Non-combat . | . . . . Combat . | . . . . Robot Hacks Applied . | . . . . Relay Couplers Released . | . . . . Fabnet Peak Effective % . | . . . . Robots Rewired . | . . . . Allies Hacked . | . . . . Hacks Repelled . | . . . . Allies | -11 -10 -9 -9 -------- Run | Yrd Mat Mat Sto Total Allies 12 | . . . 12 Largest Group 11 | . . . 11 Highest-Rated Group 119 | . . . 119 Highest-Rated Ally 31 | . . . 31 Total Orders . | . . . . Ally Attacks 85 | . . . 85 Total Damage 1003 | . . . 1003 Kills 12 | . . . 12 Allies Corrupted . | . . . . Allies Melted . | . . . . Intel | -11 -10 -9 -9 ------- Run | Yrd Mat Mat Sto Robot Analysis Total . | . . . . Derelict Logs Recovered . | . . . . Drone Launches . | . . . . Drone Recoveries . | . . . . Exploration | -11 -10 -9 -9 ------------- Run | Yrd Mat Mat Sto Turns Passed 917 | 203 320 78 316 Spaces Moved 1051 | 176 409 156 310 Core 65 | 19 2 . 44 Treads 61 | . . . 61 Legs 27 | . . . 27 Wheels 442 | 157 285 . . Hover . | . . . . Flight 456 | . 122 156 178 Fastest Speed 37 | 50 37 37 37 Average Speed 68 | 76 67 38 82 Slowest Speed 260 | 80 150 117 260 Overloaded Moves . | . . . . Propulsion Burnouts . | . . . . Robots Hopped . | . . . . Cave-ins Triggered . | . . . . Exploration Rate (%) 22 | 6 34 14 34 Regions Visited 3 Branch Regions 1 Pre-discovered Areas . | . . . . Known Exits Taken . | . . . . Unknown Exits Taken 3 | 1 1 1 . Scrap Searched . | . . . . Spaces Dug . | . . . . Terrain Destroyed 125 | . 12 19 94 Melee . | . . . . Projectile . | . . . . AOE 125 | . 12 19 94 Terrain Rammed . | . . . . Walls Destroyed . | . . . . Machines Disabled . | . . . . Actions | -11 -10 -9 -9 --------- Run | Yrd Mat Mat Sto Total 1161 | 212 433 166 350 Wait . | . . . . Move 1048 | 175 408 155 310 Hop . | . . . . Pick Up 20 | 6 5 1 8 Fast Attach . | . . . . Attach 19 | 6 5 2 6 Detach 6 | . 2 2 2 Swap 8 | . 1 1 6 Drop 6 | . 2 . 4 Fire 53 | 25 10 5 13 Melee . | . . . . Ram . | . . . . Kick 1 | . . . 1 Crush . | . . . . Escape Stasis . | . . . . Rewire . | . . . . Trap . | . . . . Miscellaneous . | . . . . Route ------- -11/Scrapyard -10/Materials -9/Materials -9/Storage History --------- Turn | Location | Event 2 | -11/Scrapyard | Met Revision 17 54 | -11/Scrapyard | Discovered new exit (range 8) 204 | -11/Scrapyard | Entered Materials 303 | -10/Materials | Build established: Mutant 482 | -10/Materials | Discovered new exit (range 9) 524 | -10/Materials | Entered another Materials area 524 | -9/Materials | Evolved 2 slots: Power x1, Propulsion x1 594 | -9/Materials | Discovered new exit (range 12) 602 | -9/Materials | Entered Storage 662 | -9/Storage | Met a pair of Derelict thieves 751 | -9/Storage | Assisted by bots powering up and referring to "LRC-V3" 865 | -9/Storage | Lost 10 allies 898 | -9/Storage | Core integrity fell below 50% 912 | -9/Storage | Core integrity fell below 20% 918 | -9/Storage | Destroyed by S-10 Pest with Light Assault Rifle Last Messages --------------- K-01 Serf collects debris. U-05 Engineer lays Concrete. U-05 Engineer builds a Wall. Kicked G-47 Trooper out of the way. G-34 Mercenary destroyed. Carbon-fiber Leg destroyed. Destroyed Carbon-fiber Leg. Missile Launcher destroyed. Destroyed Missile Launcher. Drone Bay destroyed. Destroyed Drone Bay. U-05 Engineer lays Concrete. K-01 Serf collects debris. U-05 Engineer builds a Wall. Carbon-fiber Leg destroyed. U-05 Engineer lays Concrete. G-47 Trooper destroyed. U-05 Engineer builds a Wall. U-05 Engineer lays Concrete. The unstable cave ceiling collapses. Map ----- +----------------------------------------------------+ | ??????????????????????????????????????????????? | | ??????????????????????????????????????????????? | | ??????????????????????????????????????????????? | | ??????????????????????????????????????????????? | | ??????????????????????????????????????????????? | | ??????????????????????????????????????????????? | | ??????????????????????### ????????????????????? | | ????????????????????? ????????????????????? | | ?????????????????????# ????????????????????? | | ?????????????????????# ????????????????????? | | ?????????????????????# ????????????????????? | | ?????????????????????# ????????????????????? | | ?????????????????????# ?????????????????????? | | ?????????????????????# ????????????????????? | | ?????????????????##### ?????????????????????? | | ?????????????????? ?????????????????????? | | ??????????????????? ?????????????????????? | | ????????????????????? ?????????????????????? | | ???????????############+####??????????????????? | | ???????????# # #??????????????????? | | ???????????# """ #! #??????????????????? | | ?????????### """ # a #??????????????????? | | ?????????#"" """ # sk #??????????????????? | | ?????????#"T #!s #??????????????????? | | ?????????#"" """ # #??????????????????? | | ??????????## """ # @ #??????????????????? | | ??????????# """ #s #??????????????????? | | ???????????# = #??????????????????? | | ???????????##### [!# #??????????????????? | | ???????######## =%=%Y= #??????????????????? | | ???????#!!!!# + % #??????????????????? | | ?????#?# # # % #??????????????????? | | ???????#!!! # # ##########??????????????????? | | ???????#### # # = # #?????????????????????????? | | ?#????????# # # ##????????????????????????? | | ??#?????#?# # # #????????????????????????? | | ???????#??# # % # #####?????????????????????? | | ??????????# # = """""####?????????????????? | | ???????###### # ]== ""T""# ##?#??#????????????? | | ?????### #### #*% #???#??????????????? | | ?????# % = = #??????????????????? | | ? ?? #!! %=% ##########?????????# | | ?????#!! " " ###! ! !#?????????? | | ?????#!! "R"! % #?#!! ! #?????????? | | ?????# """ [ #?# !!#?#???????? | | ? ???# [%= ] ###! #??????#??? | | ???########### = % ####" "###?????????? | | ???# # !%*# #?# T#??????????? | | ?### ##==*# ###### ##??????????? | | ?#"" #!*[=!###"""T"""####+######??????? | +----------------------------------------------------+ Best States ------------- Heat Dissipation 28 Energy Generation 19 Energy Capacity 185 Matter Stores 300 Matter Capacity 300 Sight Range 16 Terrain Scan Range 16 Terrain Scan Density 10 Evasion (%) 62 Targeting Accuracy 5 Recoil Reduction 1 Item Schematics ----------------- None Robot Schematics ------------------ None Fabricated ------------ Nothing Alien Tech Used ----------------- None Achievements -------------- One Hack Too Far Shopping List The More The Merrier Challenges ------------ None Game ------ Seed OpticalClaymoresShockpuncher Manual? 0 Play Time 00:23:09 Cumulative 1.2 hours Start 2024.04.05 @ 23:27:03 End 2024.04.05 @ 23:51:24 Sessions 1 Manual Loads 0 Difficulty Rogue Special Mode None Game No. 3 Rogue 3 Adventurer 0 Explorer 0 Win Type - Total 0 Types 0/0/0/0/0/0/0/0/0 Lore% 1 Gallery% 2 Achievement% 2 Wizard Run 0 Options --------- Layout 1 ASCII 0 Keyboard 0 Movement Mouse Keybinds 0 Fullscreen 1 Font 24/Smallcaps Map View 50x35 Zoom Use 0% Tactical HUD 0 Map Filters NONE Filters NONE Steam 1 RUN: 65a472c5-f970-4b18-a7fa-f4a392de1691